[Event "ISR-ch Youth 2019"]
[Site "Jerusalem"]
[Date "2019.04.18"]
[Round "9.7"]
[White "Rabinovich, Yoav"]
[Black "Ribstein, Orel"]
[Result "1/2-1/2"]
[ECO "A41"]
[WhiteElo "1081"]
[BlackElo "1708"]
[Annotator "NA RC"]
[PlyCount "173"]
[EventDate "2019.04.11"]
[EventType "swiss"]
[EventCountry "ISR"]
[SourceTitle "playchess.com"]
[Source "ChessBase"]
[SourceQuality "1"]
[TimeControl "5400+30"]

1. d4 {[%emt 0:00:00]} d6 {[%emt 0:00:00]} 2. Nf3 {[%emt 0:00:00]} g6 {[%emt 0:00:00]} 3. Bf4 {[%emt 0:00:17]} Bg7 {[%emt 0:00:00]} 4. e3 {[%emt 0:00:15]} Nd7 {[%emt 0:00:00]} 5. Bc4 {[%emt 0:01:49]} e5 {[%emt 0:00:35]} 6. Bg5 {[%emt 0:01:20]} Ngf6 {[%emt 0:00:59]} 7. O-O {[%emt 0:00:36]} O-O {[%emt 0:01:36]} 8. Nc3 {[%emt 0:00:34]} h6 {[%emt 0:00:31]} 9. Bh4 {[%emt 0:00:04]} Re8 {[%emt 0:15:33]} 10. Nd5 {[%emt 0:02:39]} c6 {[%emt 0:04:49]} 11. Nc3 {[%emt 0:00:46]} e4 {[%emt 0:05:00]} 12. Nd2 {[%emt 0:00:25]} d5 {[%emt 0:00:29]} 13. Be2 {[%emt 0:00:44]} Nf8 {[%emt 0:13:09]} 14. Na4 {[%emt 0:01:46]} g5 {[%emt 0:04:31]} 15. Bg3 {[%emt 0:00:13]} Ng6 {[%emt 0:00:18]} 16. c4 {[%emt 0:00:22]} dxc4 {[%emt 0:00:40]} 17. Bxc4 {[%emt 0:00:25]} b5 {[%emt 0:00:08]} 18. Bb3 {[%emt 0:00:56]} bxa4 {[%emt 0:00:04]} 19. Bxa4 {[%emt 0:00:12]} Bd7 {[%emt 0:02:16]} 20. Rc1 {[%emt 0:00:37]} Rc8 {[%emt 0:01:47]} 21. Nc4 {[%emt 0:00:04]} Bf8 {[%emt 0:11:13]} 22. h3 {[%emt 0:02:52]} g4 {[%emt 0:05:31]} 23. h4 {[%emt 0:01:04]} Nh5 {[%emt 0:00:33]} 24. Bd6 {[%emt 0:02:25]} Qxh4 {[%emt 0:02:33]} 25. g3 {[%emt 0:01:25]} Qf6 {[%emt 0:02:21]} 26. Be5 {[%emt 0:00:39]} Qd8 {[%emt 0:03:04]} 27. Bc2 {[%emt 0:01:39]} Bf5 {[%emt 0:02:37]} 28. Kg2 {[%emt 0:01:20]} f6 {[%emt 0:05:54]} 29. Bf4 {[%emt 0:00:15]} Nhxf4+ {[%emt 0:00:20]} 30. gxf4 {[%emt 0:01:05]} Nh4+ {[%emt 0:01:45]} 31. Kg3 {[%emt 0:00:19]} Nf3 {[%emt 0:00:59]} 32. Rh1 {[%emt 0:00:07]} Qd7 {[%emt 0:01:31]} 33. Bb3 {[%emt 0:01:07]} Be6 {[%emt 0:02:09]} 34. Qc2 {[%emt 0:00:39]} Qh7 {[%emt 0:00:36]} 35. Rh5 {[%emt 0:00:57]} Bf7 {[%emt 0:00:42]} 36. Ra5 {[%emt 0:01:15]} h5 {[%emt 0:00:28]} 37. Rh1 {[%emt 0:00:55]} h4+ {[%emt 0:01:00]} 38. Kxg4 {[%emt 0:00:24]} Be6+ {[%emt 0:00:27]} 39. f5 {[%emt 0:00:08]} Qg6+ {[%emt 0:00:20]} 40. Kh3 {[%emt 0:00:44]} Bxf5+ {[%emt 0:00:01]} 41. Rxf5 {[%emt 0:00:15]} Qxf5+ {[%emt 0:00:07]} 42. Kg2 {[%emt 0:00:14]} Qg4+ {[%emt 0:00:55]} 43. Kf1 {[%emt 0:00:09]} Kh8 {[%emt 0:00:14]} 44. Qd1 {[%emt 0:00:29]} h3 {[%emt 0:00:17]} 45. d5 {[%emt 0:01:45]} Rcd8 {[%emt 0:02:01]} 46. d6 {[%emt 0:00:06]} Nh2+ {[%emt 0:01:02]} 47. Rxh2 {[%emt 0:00:14]} Qxd1+ {[%emt 0:00:41]} 48. Bxd1 {[%emt 0:00:07]} Bxd6 {[%emt 0:00:30]} 49. Rxh3+ {[%emt 0:00:04]} Kg7 {[%emt 0:00:09]} 50. Bc2 {[%emt 0:01:52]} f5 {[%emt 0:00:23]} 51. Rh1 {[%emt 0:01:13]} Bc7 {[%emt 0:01:09]} 52. Ba4 {[%emt 0:00:49]} Re6 {[%emt 0:01:16]} 53. Bb3 {[%emt 0:00:38]} Rh6 {[%emt 0:00:12]} 54. Rg1+ {[%emt 0:00:29]} Rg6 {[%emt 0:00:09]} 55. Rxg6+ {[%emt 0:02:47]} Kxg6 {[%emt 0:00:05]} 56. Ba4 {[%emt 0:00:09]} c5 {[%emt 0:00:51]} 57. Ke2 {[%emt 0:01:27]} Kg5 {[%emt 0:01:06]} 58. f3 {[%emt 0:01:24]} exf3+ {[%emt 0:00:29]} 59. Kxf3 {[%emt 0:00:05]} Rf8 {[%emt 0:00:46]} 60. Bc6 {[%emt 0:00:56]} f4 {[%emt 0:00:26]} 61. e4 {[%emt 0:00:17]} Rh8 {[%emt 0:01:27]} 62. e5 {[%emt 0:00:40]} Rh6 {[%emt 0:02:06]} 63. Bd7 {[%emt 0:00:56]} Rh1 {[%emt 0:01:02]} 64. e6 {[%emt 0:00:48]} Kf6 {[%emt 0:00:50]} 65. Nd2 {[%emt 0:00:56]} Rh3+ {[%emt 0:00:48]} 66. Kg2 {[%emt 0:02:09]} Re3 {[%emt 0:03:08]} 67. Kf2 {[%emt 0:00:39]} Ke7 {[%emt 0:00:31]} 68. Nb3 {[%emt 0:02:57]} Bd6 {[%emt 0:00:35]} 69. Na5 {[%emt 0:00:42]} Rd3 {[%emt 0:00:25]} 70. Ke2 {[%emt 0:00:34]} Rh3 {[%emt 0:00:13]} 71. Nc6+ {[%emt 0:00:50]} Kf6 {[%emt 0:00:39]} 72. Nxa7 {[%emt 0:02:07]} Rh2+ {[%emt 0:00:32]} 73. Kf3 {[%emt 0:00:01]} Rxb2 {[%emt 0:00:16]} 74. Nb5 {[%emt 0:00:01]} Bb8 {[%emt 0:01:11]} 75. Nc3 {[%emt 0:00:52]} Ke7 {[%emt 0:03:03]} 76. Nd5+ {[%emt 0:00:36]} Kd8 {[%emt 0:00:21]} 77. Nc3 {[%emt 0:01:46]} Be5 {[%emt 0:00:43]} 78. Na4 {[%emt 0:00:30]} Rc2 {[%emt 0:01:00]} 79. Nb6 {[%emt 0:02:40]} Rxa2 {[%emt 0:00:21]} 80. Nd5 {[%emt 0:00:32]} Ra3+ {[%emt 0:00:13]} 81. Ke4 {[%emt 0:01:03]} f3 {[%emt 0:01:13]} 82. Kxe5 {[%emt 0:00:31]} f2 {[%emt 0:00:07]} 83. Bb5 {[%emt 0:00:08]} Ra7 {[%emt 0:00:31]} 84. e7+ {[%emt 0:00:34]} Rxe7+ {[%emt 0:00:08]} 85. Nxe7 {[%emt 0:00:10]} Kxe7 {[%emt 0:00:01]} 86. Kd5 {[%emt 0:00:13]} c4 {[%emt 0:00:06]} 87. Bxc4 {[%emt 0:00:05]} 1/2-1/2

[Event "ISR-ch Youth 2019"]
[Site "Jerusalem"]
[Date "2019.04.18"]
[Round "9.8"]
[White "Blumenthal, Michael"]
[Black "Viks, Ido"]
[Result "1-0"]
[ECO "B78"]
[WhiteElo "1277"]
[BlackElo "1137"]
[Annotator "NA RC"]
[PlyCount "61"]
[EventDate "2019.04.11"]
[EventType "swiss"]
[EventCountry "ISR"]
[SourceTitle "playchess.com"]
[Source "ChessBase"]
[SourceQuality "1"]
[TimeControl "5400+30"]

1. e4 {[%emt 0:00:00]} c5 {[%emt 0:00:00]} 2. Nf3 {[%emt 0:00:00]} Nc6 {[%emt 0:00:00]} 3. d4 {[%emt 0:00:00]} cxd4 {[%emt 0:00:00]} 4. Nxd4 {[%emt 0:00:00]} g6 {[%emt 0:00:00]} 5. Nc3 {[%emt 0:00:00]} Bg7 {[%emt 0:00:00]} 6. Be3 {[%emt 0:00:06]} Nf6 {[%emt 0:00:16]} 7. Bc4 {[%emt 0:00:14]} O-O {[%emt 0:00:19]} 8. Bb3 {[%emt 0:00:11]} d6 {[%emt 0:00:11]} 9. f3 {[%emt 0:00:06]} Bd7 {[%emt 0:00:09]} 10. Qd2 {[%emt 0:00:14]} Rc8 {[%emt 0:00:21]} 11. g4 {[%emt 0:00:13]} h5 {[%emt 0:00:55]} 12. gxh5 {[%emt 0:00:28]} Nxh5 {[%emt 0:00:09]} 13. h4 {[%emt 0:00:56]} Na5 {[%emt 0:04:18]} 14. O-O-O {[%emt 0:00:49]} Nc4 {[%emt 0:06:50]} 15. Bxc4 {[%emt 0:00:17]} Rxc4 {[%emt 0:00:07]} 16. Rhg1 {[%emt 0:01:09]} Kh7 {[%emt 0:11:16]} 17. Rg5 {[%emt 0:04:42]} Rh8 {[%emt 0:26:31]} 18. Rxh5+ {[%emt 0:15:30]} gxh5 {[%emt 0:01:27]} 19. Rg1 {[%emt 0:01:14]} e6 {[%emt 0:21:38]} 20. Qd3 {[%emt 0:07:50]} Rc8 {[%emt 0:05:03]} 21. Bg5 {[%emt 1:06:31]} Qf8 {[%emt 0:10:03]} 22. e5+ {[%emt 0:00:00]} Kg8 {[%emt 0:00:48]} 23. Ne4 {[%emt 0:00:00]} f6 {[%emt 0:02:42]} 24. exf6 {[%emt 0:00:00]} Kf7 {[%emt 0:03:41]} 25. fxg7 {[%emt 0:00:00]} Qxg7 {[%emt 0:00:58]} 26. Nxd6+ {[%emt 0:00:00]} Kf8 {[%emt 0:00:30]} 27. Nxc8 {[%emt 0:00:00]} Bxc8 {[%emt 0:00:13]} 28. Nxe6+ {[%emt 0:00:00]} Bxe6 {[%emt 0:00:27]} 29. Qd8+ {[%emt 0:00:00]} Kf7 {[%emt 0:01:13]} 30. Qe7+ {[%emt 0:00:00]} Kg8 {[%emt 0:00:22]} 31. Be3 {[%emt 0:00:00]} 1-0

[Event "ISR-ch Youth 2019"]
[Site "Jerusalem"]
[Date "2019.04.18"]
[Round "9.9"]
[White "Vetshtein, Lior"]
[Black "Sadka Darrell, Daria"]
[Result "0-1"]
[ECO "C50"]
[WhiteElo "1622"]
[BlackElo "1451"]
[Annotator "NA RC"]
[PlyCount "63"]
[EventDate "2019.04.11"]
[EventType "swiss"]
[EventCountry "ISR"]
[SourceTitle "playchess.com"]
[Source "ChessBase"]
[SourceQuality "1"]
[TimeControl "5400+30"]

1. e4 {[%emt 0:00:00]} e5 {[%emt 0:01:53]} 2. Nf3 {[%emt 0:00:53]} d6 {[%emt 0:01:17]} 3. Bc4 {[%emt 0:09:16]} Be7 {[%emt 0:01:06]} 4. Nc3 {[%emt 0:03:18]} Nc6 {[%emt 0:02:48]} 5. d4 {[%emt 0:08:15]} Nf6 {[%emt 0:17:23]} 6. h3 {[%emt 0:10:56]} exd4 {[%emt 0:05:41]} 7. Nxd4 {[%emt 0:00:10]} Ne5 {[%emt 0:02:37]} 8. Be2 {[%emt 0:02:40]} d5 {[%emt 0:09:10]} 9. Bf4 {[%emt 0:18:12]} Ng6 {[%emt 0:02:40]} 10. Bg3 {[%emt 0:03:20]} O-O {[%emt 0:05:05]} 11. e5 {[%emt 0:07:31]} Ne4 {[%emt 0:02:06]} 12. Nxe4 {[%emt 0:04:14]} dxe4 {[%emt 0:00:03]} 13. O-O {[%emt 0:03:27]} Bc5 {[%emt 0:09:31]} 14. Nb5 {[%emt 0:04:07]} Qg5 {[%emt 0:03:39]} 15. Kh2 {[%emt 0:03:16]} Qe7 {[%emt 0:05:33]} 16. Nc3 {[%emt 0:04:56]} Nxe5 {[%emt 0:06:39]} 17. Nxe4 {[%emt 0:01:43]} Bb6 {[%emt 0:02:56]} 18. Nc3 {[%emt 0:02:32]} Rd8 {[%emt 0:02:50]} 19. Qc1 {[%emt 0:01:26]} Bd4 {[%emt 0:01:07]} 20. Qf4 {[%emt 0:03:43]} Ng6 {[%emt 0:05:38]} 21. Qxc7 {[%emt 0:01:18]} Rd7 {[%emt 0:00:58]} 22. Qc4 {[%emt 0:00:40]} Ne5 {[%emt 0:01:16]} 23. Bxe5 {[%emt 0:01:50]} Bxe5+ {[%emt 0:00:17]} 24. Kh1 {[%emt 0:00:24]} Rd4 {[%emt 0:00:44]} 25. Qb3 {[%emt 0:01:22]} Be6 {[%emt 0:04:36]} 26. Qb5 {[%emt 0:00:52]} Bf5 {[%emt 0:02:36]} 27. Rae1 {[%emt 0:01:42]} Rb4 {[%emt 0:02:09]} 28. Nd5 {[%emt 0:01:00]} Qe6 {[%emt 0:01:07]} 29. Nxb4 {[%emt 0:00:38]} Bxh3 {[%emt 0:00:14]} 30. Bf3 {[%emt 0:00:47]} Bxg2+ {[%emt 0:00:31]} 31. Kxg2 {[%emt 0:00:31]} Qg6+ {[%emt 0:00:01]} 32. Kh3 {[%emt 0:01:01]} 0-1

[Event "ISR-ch Youth 2019"]
[Site "Jerusalem"]
[Date "2019.04.18"]
[Round "9.10"]
[White "Qasem, Huda"]
[Black "Adlen, Noya"]
[Result "1-0"]
[ECO "A04"]
[WhiteElo "1664"]
[BlackElo "1253"]
[Annotator "NA RC"]
[PlyCount "73"]
[EventDate "2019.04.11"]
[EventType "swiss"]
[EventCountry "ISR"]
[SourceTitle "playchess.com"]
[Source "ChessBase"]
[SourceQuality "1"]
[TimeControl "5400+30"]

1. Nf3 {[%emt 0:00:00]} d6 {[%emt 0:00:00]} 2. g3 {[%emt 0:00:00]} e5 {[%emt 0:00:14]} 3. d3 {[%emt 0:00:12]} h6 {[%emt 0:00:34]} 4. Bg2 {[%emt 0:00:48]} Nf6 {[%emt 0:02:13]} 5. e4 {[%emt 0:00:44]} Nc6 {[%emt 0:01:57]} 6. c3 {[%emt 0:01:10]} a5 {[%emt 0:02:41]} 7. a4 {[%emt 0:00:40]} Be7 {[%emt 0:04:15]} 8. Nbd2 {[%emt 0:00:45]} Bg4 {[%emt 0:01:35]} 9. h3 {[%emt 0:00:36]} Be6 {[%emt 0:01:03]} 10. Qe2 {[%emt 0:03:41]} d5 {[%emt 0:03:03]} 11. O-O {[%emt 0:03:55]} Bd6 {[%emt 0:00:23]} 12. d4 {[%emt 0:02:22]} dxe4 {[%emt 0:03:24]} 13. Nxe4 {[%emt 0:00:18]} O-O {[%emt 0:00:09]} 14. dxe5 {[%emt 0:01:40]} Nxe5 {[%emt 0:01:21]} 15. Nxe5 {[%emt 0:00:09]} Bxe5 {[%emt 0:01:21]} 16. Nc5 {[%emt 0:00:15]} Bd6 {[%emt 0:10:21]} 17. Nxb7 {[%emt 0:00:07]} Qd7 {[%emt 0:00:45]} 18. Nxd6 {[%emt 0:00:07]} cxd6 {[%emt 0:00:03]} 19. Bxa8 {[%emt 0:00:13]} Rxa8 {[%emt 0:02:02]} 20. h4 {[%emt 0:02:21]} Qc6 {[%emt 0:00:24]} 21. Re1 {[%emt 0:03:44]} Bh3 {[%emt 0:00:16]} 22. f3 {[%emt 0:01:44]} Re8 {[%emt 0:02:18]} 23. Be3 {[%emt 0:04:55]} Ng4 {[%emt 0:10:56]} 24. fxg4 {[%emt 0:00:17]} Rxe3 {[%emt 0:00:03]} 25. Qf2 {[%emt 0:00:22]} Rxe1+ {[%emt 0:00:43]} 26. Rxe1 {[%emt 0:00:11]} Qxa4 {[%emt 0:00:58]} 27. Qd4 {[%emt 0:01:05]} Qc6 {[%emt 0:00:48]} 28. Re2 {[%emt 0:01:35]} Qf3 {[%emt 0:01:14]} 29. Re8+ {[%emt 0:00:09]} Kh7 {[%emt 0:00:22]} 30. Qe4+ {[%emt 0:00:03]} Qxe4 {[%emt 0:00:11]} 31. Rxe4 {[%emt 0:00:05]} g6 {[%emt 0:05:59]} 32. Rf4 {[%emt 0:02:49]} Kg7 {[%emt 0:00:15]} 33. Kh2 {[%emt 0:00:07]} Bxg4 {[%emt 0:01:14]} 34. Rxg4 {[%emt 0:00:05]} f5 {[%emt 0:00:17]} 35. Ra4 {[%emt 0:00:04]} Kf6 {[%emt 0:00:54]} 36. Rxa5 {[%emt 0:00:03]} g5 {[%emt 0:00:34]} 37. b4 {[%emt 0:00:05]} 1-0

[Event "ISR-ch Youth 2019"]
[Site "Jerusalem"]
[Date "2019.04.18"]
[Round "9.11"]
[White "Gallily, Maya"]
[Black "Gadasi, Noam"]
[Result "0-1"]
[ECO "E21"]
[WhiteElo "1028"]
[BlackElo "1653"]
[Annotator "NA RC"]
[PlyCount "88"]
[EventDate "2019.04.11"]
[EventType "swiss"]
[EventCountry "ISR"]
[SourceTitle "playchess.com"]
[Source "ChessBase"]
[SourceQuality "1"]
[TimeControl "5400+30"]

1. d4 {[%emt 0:00:00]} Nf6 {[%emt 0:00:00]} 2. c4 {[%emt 0:00:00]} e6 {[%emt 0:00:00]} 3. Nc3 {[%emt 0:00:03]} Bb4 {[%emt 0:00:00]} 4. Bd2 {[%emt 0:00:16]} b6 {[%emt 0:00:49]} 5. Nf3 {[%emt 0:01:03]} Bb7 {[%emt 0:00:48]} 6. e3 {[%emt 0:00:11]} O-O {[%emt 0:01:43]} 7. a3 {[%emt 0:00:11]} Bxc3 {[%emt 0:00:19]} 8. Bxc3 {[%emt 0:00:09]} d5 {[%emt 0:02:26]} 9. Be2 {[%emt 0:01:47]} Ne4 {[%emt 0:03:32]} 10. Rc1 {[%emt 0:02:54]} Nd7 {[%emt 0:04:49]} 11. c5 {[%emt 0:03:00]} bxc5 {[%emt 0:09:45]} 12. dxc5 {[%emt 0:01:16]} c6 {[%emt 0:01:12]} 13. Bd4 {[%emt 0:01:26]} f6 {[%emt 0:06:44]} 14. b4 {[%emt 0:01:34]} a5 {[%emt 0:03:52]} 15. O-O {[%emt 0:01:06]} axb4 {[%emt 0:01:58]} 16. axb4 {[%emt 0:00:38]} Ba6 {[%emt 0:00:57]} 17. Bxa6 {[%emt 0:00:54]} Rxa6 {[%emt 0:00:07]} 18. Nd2 {[%emt 0:00:58]} Nxd2 {[%emt 0:03:14]} 19. Qxd2 {[%emt 0:00:10]} Qc7 {[%emt 0:00:42]} 20. g3 {[%emt 0:03:19]} Rfa8 {[%emt 0:05:48]} 21. Ra1 {[%emt 0:01:09]} Rxa1 {[%emt 0:02:09]} 22. Rxa1 {[%emt 0:01:39]} Rxa1+ {[%emt 0:01:02]} 23. Bxa1 {[%emt 0:00:09]} Qa7 {[%emt 0:00:19]} 24. Qc3 {[%emt 0:00:47]} Ne5 {[%emt 0:06:11]} 25. f4 {[%emt 0:02:05]} Nc4 {[%emt 0:00:17]} 26. Bb2 {[%emt 0:01:48]} Qa2 {[%emt 0:09:45]} 27. Ba1 {[%emt 0:04:29]} Qe2 {[%emt 0:01:12]} 28. g4 {[%emt 0:10:18]} Nxe3 {[%emt 0:00:42]} 29. Qxe3 {[%emt 0:00:27]} Qxe3+ {[%emt 0:00:10]} 30. Kg2 {[%emt 0:00:13]} Qe2+ {[%emt 0:00:18]} 31. Kg3 {[%emt 0:00:21]} Qe1+ {[%emt 0:00:06]} 32. Kh3 {[%emt 0:00:20]} Qxa1 {[%emt 0:00:09]} 33. b5 {[%emt 0:00:06]} cxb5 {[%emt 0:00:09]} 34. c6 {[%emt 0:00:07]} Qc3+ {[%emt 0:00:09]} 35. Kh4 {[%emt 0:00:09]} Qxc6 {[%emt 0:00:30]} 36. f5 {[%emt 0:00:22]} exf5 {[%emt 0:00:36]} 37. gxf5 {[%emt 0:00:08]} b4 {[%emt 0:00:18]} 38. Kh5 {[%emt 0:00:24]} b3 {[%emt 0:00:10]} 39. h4 {[%emt 0:00:07]} b2 {[%emt 0:00:15]} 40. Kg4 {[%emt 0:00:06]} b1=Q {[%emt 0:00:23]} 41. Kg3 {[%emt 0:00:09]} Qc4 {[%emt 0:00:13]} 42. h5 {[%emt 0:00:14]} Qbd3+ {[%emt 0:00:08]} 43. Kh2 {[%emt 0:00:19]} Qcc2+ {[%emt 0:00:08]} 44. Kg1 {[%emt 0:00:15]} Qdd1# {[%emt 0:00:02]} 0-1